fUST/lending_fUST_20240305
["ID","MTS","AMOUNT","RATE_DAILY","PERIOD"]
[316725515,1709603449020,-175.707796,0.00024657,2]
[316725517,1709603449031,-175.707796,0.00024657,2]
[316725520,1709603449042,-175.707799,0.00024657,2]
[316725522,1709603449052,-500.0,0.00024657,2]
[316725524,1709603449063,-500.0,0.00024657,2]
[316725526,1709603449072,-522.9086444,0.00024657,2]
[316725528,1709603449082,-500.0,0.00024657,2]
[316725530,1709603449091,-500.0,0.00024657,2]
[316725532,1709603449101,-503.06091042,0.00024657,2]
[316725534,1709603449113,-500.0,0.00024657,2]
[316725536,1709603449124,-500.0,0.00024657,2]
[316725538,1709603449133,-500.58223812,0.00024657,2]
[316725540,1709603449142,-500.0,0.00024657,2]
[316725542,1709603449152,-500.0,0.00024657,2]
[316725544,1709603449161,-501.52313528,0.00024657,2]
[316725546,1709603449170,-500.0,0.00024657,2]
[316725548,1709603449179,-500.0,0.00024657,2]
[316725550,1709603449189,-500.0,0.00024657,2]
[316725552,1709603449198,-500.0,0.00024657,2]
[316725554,1709603449211,-504.21657826,0.00024657,2]
[316725555,1709603449221,-500.0,0.00024657,2]
[316725557,1709603449230,-500.0,0.00024657,2]
[316725559,1709603449240,-500.0,0.00024657,2]
[316725561,1709603449249,-500.0,0.00024657,2]
[316725563,1709603449258,-500.0,0.00024657,2]
[316725565,1709603449267,-371.65606745,0.00024657,2]
[316725567,1709603449276,-155.99548688,0.00024657,2]
[316725569,1709603449286,-500.0,0.00024657,2]
[316725571,1709603449295,-500.0,0.00024657,2]
[316725573,1709603449306,-501.41548085,0.00024657,2]
[316725575,1709603449315,-500.0,0.00024657,2]
[316725577,1709603449324,-720.47,0.00024657,2]
[316725579,1709603449334,-500.0,0.00024657,2]
[316725581,1709603449343,-500.0,0.00024657,2]
[316725583,1709603449352,-500.0,0.00024657,2]
[316725585,1709603449362,-500.0,0.00024657,2]
[316725587,1709603449371,-500.0,0.00024657,2]
[316725589,1709603449381,-720.47,0.00024657,2]
[316725591,1709603449390,-500.0,0.00024657,2]
[316725593,1709603449400,-720.47,0.00024657,2]
[316725595,1709603449409,-500.0,0.00024657,2]
[316725597,1709603449418,-720.47,0.00024657,2]
[316725599,1709603449428,-500.0,0.00024657,2]
[316725601,1709603449437,-500.0,0.00024657,2]
[316725603,1709603449446,-720.47,0.00024657,2]
[316725605,1709603449456,-500.0,0.00024657,2]
[316725607,1709603449465,-720.47,0.00024657,2]
[316725609,1709603449475,-720.47,0.00024657,2]
[316725611,1709603449484,-500.0,0.00024657,2]
[316725613,1709603449494,-720.47,0.00024657,2]
[316725615,1709603449502,-500.0,0.00024657,2]
[316725617,1709603449511,-720.47,0.00024657,2]
[316725618,1709603449520,-500.0,0.00024657,2]
[316725620,1709603449529,-720.47,0.00024657,2]
[316725622,1709603449538,-500.0,0.00024657,2]
[316725624,1709603449548,-720.47,0.00024657,2]
[316725626,1709603449557,-720.47,0.00024657,2]
[316725628,1709603449566,-236.24337701,0.00024657,2]
[316725630,1709603449576,-720.47,0.00024657,2]
[316725632,1709603449585,-500.0,0.00024657,2]
[316725634,1709603449594,-720.47,0.00024657,2]
[316725636,1709603449603,-252.87596711,0.00024657,2]
[316725638,1709603449612,-720.47,0.00024657,2]
[316725640,1709603449621,-720.47,0.00024657,2]
[316725642,1709603449631,-720.47,0.00024657,2]
[316725644,1709603449640,-502.17515822,0.00024657,2]
[316725646,1709603449650,-720.47,0.00024657,2]
[316725648,1709603449659,-720.47,0.00024657,2]
[316725650,1709603449668,-720.47,0.00024657,2]
[316725652,1709603449678,-720.47,0.00024657,2]
[316725654,1709603449687,-720.47,0.00024657,2]
[316725656,1709603449697,-720.47,0.00024657,2]
[316725658,1709603449708,-720.65268741,0.00024657,2]
[316725660,1709603449717,-500.9698145,0.00024657,2]
[316725662,1709603449726,-500.56945005,0.00024657,2]
[316725664,1709603449736,-521.90934899,0.00024657,2]
[316725666,1709603449745,-463.39210763,0.00024657,2]
[316725668,1709603449754,-501.44513756,0.00024657,2]
[316725670,1709603449763,-500.0,0.00024657,2]
[316725672,1709603449772,-500.0,0.00024657,2]
[316725673,1709603449780,-500.0,0.00024657,2]
[316725675,1709603449790,-500.0,0.00024657,2]
[316725677,1709603449799,-500.0,0.00024657,2]
[316725679,1709603449808,-500.0,0.00024657,2]
[316725681,1709603449817,-500.0,0.00024657,2]
[316725683,1709603449826,-500.0,0.00024657,2]
[316725685,1709603449834,-500.0,0.00024657,2]
[316725687,1709603449843,-507.78199859,0.00024657,2]
[316725689,1709603449853,-500.0,0.00024657,2]
[316725691,1709603449862,-501.40772844,0.00024657,2]
[316725693,1709603449871,-2304.29,0.00024657,2]
[316725695,1709603449880,-2304.29,0.00024657,2]
[316725697,1709603449890,-2304.29,0.00024657,2]
[316725699,1709603449900,-481.57267241,0.00024657,2]
[316725706,1709603449956,-269.42479146,0.00024657,2]
[316725708,1709603449969,-1553.29253613,0.00024657,2]
[316725710,1709603449978,-500.0,0.00024657,2]
[316725712,1709603449988,-2030.40498471,0.00024657,2]
[316725731,1709603450188,-253.19,0.00024657,2]
[316728119,1709604632240,-174.89253261,0.00020107,2]
[316728120,1709604632250,-2188.20383006,0.00020108,2]
[316728121,1709604632260,-630.01402107,0.00020109,2]
[316728122,1709604632270,-620.50070105,0.00021114,2]
[316728123,1709604632280,-1253.2103668,0.00021651,2]
[316728124,1709604632289,-167.414556,0.00021687,2]
[316728125,1709604632299,-189.243394,0.00021715,2]
[316728126,1709604632308,-76.42786148,0.00022,2]
[316728127,1709604632320,-1077.57213852,0.00022,2]
[316728128,1709604632330,-620.02503505,0.0002217,2]
[316728129,1709604632340,-445.05595713,0.00022557,2]
[316728130,1709604632350,-325.25289285,0.00022837,2]
[316728131,1709604632360,-26.21747946,0.00022837,2]
[316728132,1709604632379,-265.75574702,0.00022837,2]
[316728133,1709604632389,-163.6441897,0.00023016,2]
[316728135,1709604632399,-300.0,0.00023093,2]
[316728137,1709604632408,-4015.76774117,0.00023094,5]
[316728139,1709604632417,-909.46106304,0.00023095,3]
[316728141,1709604632426,-161.63188146,0.000233,2]
[316728143,1709604632438,-38.36811854,0.000233,2]
[316728157,1709604632529,-504.69,0.00023657,7]
[316728160,1709604632560,-155.0,0.00023657,2]
[316728162,1709604632570,-6145.94188146,0.00024,2]
[316728164,1709604632581,-1698.88920731,0.00024,2]
[316728708,1709604637958,-479.1116871,0.00023095,3]
[316728710,1709604637968,-1619.78747208,0.00024,2]
[316728712,1709604637980,-2535.85664599,0.00024,2]
[316729030,1709604641289,-9476.57689184,0.00024,2]
[316729032,1709604641300,-2000.0,0.00024,2]
[316729034,1709604641310,-793.77306798,0.00024,2]
[316729036,1709604641320,-208.80113887,0.00024,2]
[316729038,1709604641330,-1458.98613537,0.00024009,2]
[316729040,1709604641341,-2000.0,0.0002401,2]
[316729042,1709604641350,-2000.0,0.0002402,2]
[316729044,1709604641360,-2000.0,0.0002403,2]
[316729046,1709604641369,-2195.462284,0.0002404,2]
[316729048,1709604641378,-306.0,0.0002411,2]
[316729050,1709604641388,-219.54623151,0.000243,2]
[316729052,1709604641397,-1000.0,0.0002436,2]
[316729054,1709604641406,-4500.99960262,0.000244,10]
[316729056,1709604641418,-2559.09444607,0.000244,10]
[316729198,1709604642826,-34157.63507903,0.000244,10]
[316729200,1709604642836,-170.50003922,0.0002441,2]
[316729201,1709604642845,-159.8524535,0.00024456,2]
[316729203,1709604642855,-155.47145818,0.00024456,2]
[316729205,1709604642865,-165.84316778,0.00024457,2]
[316729207,1709604642874,-165.84316777,0.0002449,2]
[316729209,1709604642884,-300.0,0.000245,11]
[316729211,1709604642894,-165.84316777,0.00024524,2]
[316729214,1709604642903,-165.79,0.00024547,3]
[316729217,1709604642912,-497.38,0.00024547,3]
[316729219,1709604642922,-534.40729806,0.00024555,2]
[316729221,1709604642931,-319.11713538,0.00024555,2]
[316729223,1709604642941,-501.84122316,0.00024555,2]
[316729225,1709604642950,-500.0,0.00024555,2]
[316729227,1709604642960,-517.11610691,0.00024555,2]
[316729229,1709604642972,-500.0,0.00024556,2]
[316729231,1709604642981,-500.0,0.00024556,2]
[316729233,1709604642990,-500.0,0.00024556,2]
[316729235,1709604643000,-237.90940949,0.00024556,2]
[316729237,1709604643009,-500.0,0.00024556,2]
[316729239,1709604643018,-500.0,0.00024556,2]
[316729241,1709604643028,-500.0,0.00024556,2]
[316729243,1709604643037,-205.58098277,0.00024556,2]
[316729245,1709604643047,-500.0,0.00024556,2]
[316729247,1709604643057,-500.0,0.00024556,2]
[316729256,1709604643066,-500.0,0.00024556,2]
[316729259,1709604643166,-500.0,0.00024556,2]
[316729261,1709604643176,-500.0,0.00024556,2]
[316729263,1709604643186,-500.0,0.00024556,2]
[316729265,1709604643197,-500.0,0.00024556,2]
[316729267,1709604643211,-500.0,0.00024556,2]
[316729269,1709604643221,-500.0,0.00024556,2]
[316729271,1709604643230,-335.90473512,0.00024556,2]
[316729273,1709604643239,-500.0,0.00024556,2]
[316729275,1709604643249,-500.0,0.00024556,2]
[316729277,1709604643260,-470.55057948,0.00024556,2]
[316729278,1709604643269,-305.19,0.00024556,2]
[316729280,1709604643279,-305.19,0.00024556,2]
[316729282,1709604643288,-305.19,0.00024556,2]
[316729284,1709604643298,-305.19,0.00024556,2]
[316729286,1709604643308,-305.19,0.00024556,2]
[316729288,1709604643317,-305.19,0.00024556,2]
[316729289,1709604643326,-305.19,0.00024556,2]
[316729290,1709604643336,-305.19,0.00024556,2]
[316729291,1709604643345,-305.19,0.00024556,2]
[316729292,1709604643353,-47546.32938178,0.00024557,2]
[316729293,1709604643370,-2880.66114387,0.00024557,2]
[316729294,1709604643381,-4386.07387057,0.00024557,2]
[316729537,1709604646143,-49966.83044164,0.00024557,2]
[316729539,1709604646153,-1133.60367392,0.00024557,2]
[316729540,1709604646163,-165.84316777,0.00024557,2]
[316729542,1709604646172,-581.0,0.000246,2]
[316729544,1709604646182,-574.71229918,0.00024609,2]
[316729547,1709604646195,-558.8913747,0.00024609,2]
[316729549,1709604646205,-287.09695198,0.00024655,2]
[316729550,1709604646216,-365.53579139,0.00024655,2]
[316729552,1709604646226,-15923.29253599,0.00024655,2]
[316729554,1709604646236,-155.29608284,0.00024655,2]
[316729556,1709604646246,-1640.5416615,0.00024655,2]
[316729559,1709604646256,-214.73581723,0.00024655,2]
[316729560,1709604646266,-155.3144114,0.00024655,2]
[316729562,1709604646275,-438.15714545,0.00024655,2]
[316729564,1709604646285,-430.12176801,0.00024655,2]
[316729566,1709604646295,-6390.66980014,0.00024655,2]
[316729568,1709604646305,-239.47190898,0.00024655,2]
[316729570,1709604646315,-155.18466976,0.00024655,2]
[316729572,1709604646327,-500.0,0.00024655,2]
[316729574,1709604646336,-625.43159908,0.00024656,2]
[316729576,1709604646345,-1170.75169083,0.00024656,2]
[316729578,1709604646354,-305.26,0.00024656,2]
[316729580,1709604646364,-624.11887061,0.00024657,2]
[316729582,1709604646373,-500.0,0.00024657,2]
[316729584,1709604646382,-500.0,0.00024657,2]
[316729586,1709604646392,-500.0,0.00024657,2]
[316729588,1709604646401,-500.0,0.00024657,2]
[316729590,1709604646410,-500.0,0.00024657,2]
[316729592,1709604646419,-500.0,0.00024657,2]
[316729594,1709604646428,-500.0,0.00024657,2]
[316729596,1709604646437,-500.0,0.00024657,2]
[316729598,1709604646446,-359.93993941,0.00024657,2]
[316729600,1709604646462,-500.3365375,0.00024657,2]
[316729602,1709604646471,-500.0,0.00024657,2]
[316729603,1709604646480,-500.0,0.00024657,2]
[316729605,1709604646490,-500.0,0.00024657,2]
[316729607,1709604646501,-234.26250092,0.00024657,2]
[316729609,1709604646510,-501.08949458,0.00024657,2]
[316729611,1709604646519,-298.34214551,0.00024657,2]
[316729613,1709604646528,-396.89183824,0.00024657,2]
[316729615,1709604646538,-501.7703125,0.00024657,2]
[316729617,1709604646546,-500.0,0.00024657,2]
[316729619,1709604646556,-500.0,0.00024657,2]
[316729621,1709604646566,-502.49490374,0.00024657,2]
[316729623,1709604646575,-501.65281975,0.00024657,2]
[316729625,1709604646584,-161.05007326,0.00024657,2]
[316729627,1709604646593,-500.0,0.00024657,2]
[316729629,1709604646602,-500.0,0.00024657,2]
[316729631,1709604646610,-502.43088247,0.00024657,2]
[316729633,1709604646620,-500.0,0.00024657,2]
[316729635,1709604646628,-162.00308551,0.00024657,2]
[316729636,1709604646637,-500.0,0.00024657,2]
[316729638,1709604646647,-369.01038441,0.00024657,2]
[316729640,1709604646656,-500.5170936,0.00024657,2]
[316729642,1709604646666,-500.0,0.00024657,2]
[316729644,1709604646675,-332.00256559,0.00024657,2]
[316729646,1709604646684,-500.0,0.00024657,2]
[316729648,1709604646694,-500.0,0.00024657,2]
[316729650,1709604646703,-500.0,0.00024657,2]
[316729652,1709604646714,-302.16158338,0.00024657,2]
[316729654,1709604646724,-572.26081746,0.00024657,2]
[316729656,1709604646734,-434.08255965,0.00024657,2]
[316729658,1709604646744,-365.45352272,0.00024657,2]
[316729660,1709604646753,-500.0,0.00024657,2]
[316729662,1709604646762,-500.0,0.00024657,2]
[316729664,1709604646772,-500.0,0.00024657,2]
[316729666,1709604646781,-500.0,0.00024657,2]
[316729668,1709604646790,-500.0,0.00024657,2]
[316729670,1709604646799,-500.0,0.00024657,2]
[316729672,1709604646808,-500.0,0.00024657,2]
[316729674,1709604646818,-500.0,0.00024657,2]
[316729676,1709604646827,-500.0,0.00024657,2]
[316729678,1709604646836,-500.0,0.00024657,2]
[316729680,1709604646847,-500.0,0.00024657,2]
[316729682,1709604646857,-500.0,0.00024657,2]
[316729684,1709604646866,-500.0,0.00024657,2]
[316729686,1709604646875,-500.0,0.00024657,2]
[316729688,1709604646885,-500.0,0.00024657,2]
[316729690,1709604646895,-334.96538694,0.00024657,2]
[316729692,1709604646905,-500.0,0.00024657,2]
[316729694,1709604646915,-500.0,0.00024657,2]
[316729695,1709604646924,-500.0,0.00024657,2]
[316729696,1709604646933,-500.0,0.00024657,2]
[316729697,1709604646943,-500.0,0.00024657,2]
[316729698,1709604646952,-500.0,0.00024657,2]
[316729699,1709604646962,-500.0,0.00024657,2]
[316729700,1709604646971,-502.93099858,0.00024657,2]
[316729701,1709604646980,-500.0,0.00024657,2]
[316729702,1709604646990,-500.0,0.00024657,2]
[316729703,1709604646999,-500.0,0.00024657,2]
[316729704,1709604647008,-500.0,0.00024657,2]
[316729705,1709604647017,-500.0,0.00024657,2]
[316729706,1709604647026,-500.0,0.00024657,2]
[316729707,1709604647035,-500.0,0.00024657,2]
[316729708,1709604647044,-500.0,0.00024657,2]
[316729709,1709604647053,-500.0,0.00024657,2]
[316729710,1709604647063,-500.0,0.00024657,2]
[316729711,1709604647072,-500.0,0.00024657,2]
[316729712,1709604647081,-500.0,0.00024657,2]
[316729713,1709604647090,-500.0,0.00024657,2]
[316729714,1709604647099,-500.0,0.00024657,2]
[316729715,1709604647109,-500.0,0.00024657,2]
[316729716,1709604647118,-500.0,0.00024657,2]
[316729717,1709604647127,-500.0,0.00024657,2]
[316729719,1709604647136,-399.07455814,0.00024657,2]
[316729721,1709604647145,-500.0,0.00024657,2]
[316729723,1709604647154,-269.81876885,0.00024657,2]
[316729725,1709604647164,-500.0,0.00024657,2]
[316729727,1709604647173,-500.0,0.00024657,2]
[316729729,1709604647182,-500.0,0.00024657,2]
[316729731,1709604647191,-503.43020002,0.00024657,2]
[316729733,1709604647201,-500.0,0.00024657,2]
[316729735,1709604647212,-502.35790918,0.00024657,2]
[316729737,1709604647221,-501.85342695,0.00024657,2]
[316729747,1709604647305,-500.0,0.00024657,2]
[316729749,1709604647315,-500.0,0.00024657,2]
[316729751,1709604647324,-500.0,0.00024657,2]
[316729753,1709604647335,-500.0,0.00024657,2]
[316729755,1709604647345,-500.0,0.00024657,2]
[316729757,1709604647355,-500.0,0.00024657,2]
[316729759,1709604647364,-500.0,0.00024657,2]
[316729761,1709604647374,-500.0,0.00024657,2]
[316729764,1709604647384,-500.0,0.00024657,2]
[316729765,1709604647394,-512.5354913,0.00024657,2]
[316729767,1709604647403,-501.82692916,0.00024657,2]
[316729770,1709604647412,-536.81232158,0.00024657,2]
[316729771,1709604647422,-500.0,0.00024657,2]
[316729773,1709604647431,-500.0,0.00024657,2]
[316729775,1709604647440,-507.5077712,0.00024657,2]
[316729778,1709604647454,-501.50652188,0.00024657,2]
[316729779,1709604647465,-597.99,0.00024657,2]
[316729781,1709604647474,-597.99,0.00024657,2]
[316729783,1709604647483,-597.99,0.00024657,2]
[316729785,1709604647495,-597.99,0.00024657,2]
[316729787,1709604647504,-597.99,0.00024657,2]
[316729790,1709604647514,-597.99,0.00024657,2]
[316729792,1709604647523,-597.99,0.00024657,2]
[316729793,1709604647534,-597.99,0.00024657,2]
[316729795,1709604647543,-597.99,0.00024657,2]
[316729797,1709604647552,-597.99,0.00024657,2]
[316729799,1709604647561,-167.23257613,0.00024657,2]
[316729804,1709604647591,-430.75742387,0.00024657,2]
[316729806,1709604647600,-597.99,0.00024657,2]
[316729808,1709604647609,-597.99,0.00024657,2]
[316729810,1709604647617,-597.99,0.00024657,2]
[316729812,1709604647626,-597.99,0.00024657,2]
[316729814,1709604647635,-597.99,0.00024657,2]
[316729816,1709604647644,-597.99,0.00024657,2]
[316729817,1709604647655,-597.99,0.00024657,2]
[316729819,1709604647665,-597.99,0.00024657,2]
[316729821,1709604647674,-500.0,0.00024657,2]
[316729824,1709604647683,-597.99,0.00024657,2]
[316729825,1709604647692,-500.0,0.00024657,2]
[316729828,1709604647702,-597.99,0.00024657,2]
[316729829,1709604647711,-501.86895136,0.00024657,2]
[316729832,1709604647721,-597.99,0.00024657,2]
[316729834,1709604647730,-597.99,0.00024657,2]
[316729836,1709604647739,-598.19976881,0.00024657,2]
[316729838,1709604647748,-500.0,0.00024657,2]
[316729840,1709604647757,-500.0,0.00024657,2]
[316729842,1709604647766,-449.88917603,0.00024657,2]
[316729844,1709604647780,-50.11082397,0.00024657,2]
[316729846,1709604647789,-500.0,0.00024657,2]
[316729848,1709604647798,-500.0,0.00024657,2]
[316729850,1709604647807,-500.0,0.00024657,2]
[316729852,1709604647817,-17.84917603,0.00024657,2]
[316729854,1709604647829,-482.15082397,0.00024657,2]
[316729857,1709604647838,-500.0,0.00024657,2]
[316729859,1709604647848,-500.0,0.00024657,2]
[316729860,1709604647857,-500.0,0.00024657,2]
[316729863,1709604647866,-500.0,0.00024657,2]
[316729865,1709604647876,-500.0,0.00024657,2]
[316729866,1709604647885,-500.0,0.00024657,2]
[316729868,1709604647894,-500.0,0.00024657,2]
[316729870,1709604647903,-541.34695956,0.00024657,2]
[316729872,1709604647912,-500.6037562,0.00024657,2]
[316729874,1709604647921,-500.0,0.00024657,2]
[316729876,1709604647931,-500.0,0.00024657,2]
[316729878,1709604647940,-45.53346027,0.00024657,2]
[316729881,1709604647953,-454.46653973,0.00024657,2]
[316729883,1709604647962,-500.0,0.00024657,2]
[316729885,1709604647972,-500.0,0.00024657,2]
[316729887,1709604647981,-206.13312368,0.00024657,2]
[316729889,1709604647990,-512.46780168,0.00024657,2]
[316729891,1709604647999,-500.0,0.00024657,2]
[316729893,1709604648010,-156.44935226,0.00024657,2]
[316729896,1709604648025,-343.55064774,0.00024657,2]
[316729898,1709604648036,-222.57919582,0.00024657,2]
[316729900,1709604648052,-500.0,0.00024657,2]
[316729903,1709604648067,-500.0,0.00024657,2]
[316729906,1709604648081,-500.0,0.00024657,2]
[316729908,1709604648092,-500.0,0.00024657,2]
[316729911,1709604648106,-500.0,0.00024657,2]
[316729913,1709604648120,-500.0,0.00024657,2]
[316729915,1709604648134,-500.0,0.00024657,2]
[316729918,1709604648147,-500.0,0.00024657,2]
[316729920,1709604648161,-500.0,0.00024657,2]
[316729923,1709604648172,-500.0,0.00024657,2]
[316729925,1709604648185,-500.0,0.00024657,2]
[316729927,1709604648197,-500.0,0.00024657,2]
[316729930,1709604648212,-500.0,0.00024657,2]
[316729932,1709604648224,-500.0,0.00024657,2]
[316729935,1709604648238,-500.0,0.00024657,2]
[316729937,1709604648250,-500.0,0.00024657,2]
[316729939,1709604648260,-196.68993069,0.00024657,2]
[316729942,1709604648275,-332.5365998,0.00024657,2]
[316729944,1709604648288,-500.0,0.00024657,2]
[316729946,1709604648302,-500.0,0.00024657,2]
[316729949,1709604648314,-500.0,0.00024657,2]
[316729951,1709604648326,-500.0,0.00024657,2]
[316729953,1709604648340,-501.60661395,0.00024657,2]
[316729956,1709604648353,-500.0,0.00024657,2]
[316729958,1709604648367,-592.17328854,0.00024657,2]
[316729961,1709604648382,-500.0,0.00024657,2]
[316729963,1709604648395,-500.0,0.00024657,2]
[316729966,1709604648408,-500.0,0.00024657,2]
[316729968,1709604648418,-504.18315217,0.00024657,2]
[316729970,1709604648430,-500.0,0.00024657,2]
[316729972,1709604648442,-500.0,0.00024657,2]
[316729975,1709604648457,-500.0,0.00024657,2]
[316729977,1709604648471,-500.0,0.00024657,2]
[316729979,1709604648487,-502.24595396,0.00024657,2]
[316729982,1709604648499,-502.22481035,0.00024657,2]
[316729984,1709604648510,-500.0,0.00024657,2]
[316729986,1709604648522,-506.37798392,0.00024657,2]
[316729989,1709604648535,-500.0,0.00024657,2]
[316729991,1709604648547,-500.0,0.00024657,2]
[316729993,1709604648559,-500.0,0.00024657,2]
[316729995,1709604648571,-744.4,0.00024657,2]
[316729998,1709604648583,-500.0,0.00024657,2]
[316730000,1709604648595,-744.4,0.00024657,2]
[316730002,1709604648606,-500.0,0.00024657,2]
[316730004,1709604648618,-744.4,0.00024657,2]
[316730006,1709604648630,-744.4,0.00024657,2]
[316730009,1709604648644,-193.26621186,0.00024657,2]
[316738938,1709604832899,766.3779,0.00023482,30]
[316739078,1709605832285,-2188.20383006,0.00021381,2]
[316739080,1709605832295,-396.33609444,0.00021382,2]
[316739082,1709605832304,-181.0,0.00022,2]
[316739084,1709605832314,-181.0,0.00023014,2]
[316739086,1709605832323,-194.126291,0.00023015,2]
[316739087,1709605832332,-193.76156092,0.00023096,3]
[316739089,1709605832341,-728.16089595,0.00023096,3]
[316739091,1709605832351,-200.0,0.000233,2]
[316739093,1709605832361,-155.0,0.00023657,2]
[316739095,1709605832370,-300.0,0.00023999,2]
[316739097,1709605832379,-869.22489254,0.00024,2]
[316739099,1709605832391,-174.0,0.00024,2]
[316739101,1709605832401,-1458.98613537,0.00024,2]
[316739103,1709605832410,-2967.57192339,0.00024,2]
[316739105,1709605832419,-208.80113887,0.00024,2]
[316739107,1709605832428,-181.0,0.00024164,2]
[316739109,1709605832437,-620.28487688,0.00024165,2]
[316739111,1709605832446,-600.08561418,0.000243,3]
[316739113,1709605832455,-1000.0,0.00024387,2]
[316739115,1709605832465,-268.30386771,0.00024404,2]
[316739117,1709605832474,-600.0,0.000245,2]
[316739119,1709605832483,-1000.0,0.00024551,2]
[316739121,1709605832492,-500.0,0.00024556,2]
[316739123,1709605832501,-68008.55991276,0.00024557,2]
[316739125,1709605832510,-969.98510918,0.00024557,2]
[316739127,1709605832519,-175.5,0.000246,2]
[316739129,1709605832529,-300.0,0.000246,11]
[316739131,1709605832538,-581.0,0.000246,2]
[316739134,1709605832547,-613.77229485,0.00024611,2]
[316739137,1709605832556,-969.98510912,0.00024614,2]
[316739140,1709605832566,-1000.0,0.00024644,2]
[316739142,1709605832575,-331.58,0.00024647,3]
[316739146,1709605832585,-184.12655354,0.00024655,2]
[316739148,1709605832595,-566.21489757,0.00024655,2]
[316739152,1709605832606,-500.0,0.00024656,2]
[316739154,1709605832616,-493.90668794,0.00024656,2]
[316739156,1709605832625,-166.53658664,0.00024656,2]
[316739157,1709605832634,-500.0,0.00024656,2]
[316739160,1709605832647,-500.0,0.00024656,2]
[316739161,1709605832657,-277.33675774,0.00024656,2]
[316739163,1709605832666,-500.0,0.00024656,2]
[316739165,1709605832675,-485.13331458,0.00024656,2]
[316739168,1709605832685,-500.0,0.00024656,2]
[316739169,1709605832695,-500.0,0.00024656,2]
[316739171,1709605832704,-500.0,0.00024656,2]
[316739173,1709605832713,-500.0,0.00024656,2]
[316739175,1709605832722,-500.0,0.00024656,2]
[316739177,1709605832731,-500.0,0.00024656,2]
[316739179,1709605832740,-500.0,0.00024656,2]
[316739181,1709605832750,-300.0,0.00024656,2]
[316739183,1709605832759,-152.44893851,0.00024656,2]
[316739185,1709605832769,-103732.65358369,0.00024657,2]
[316739187,1709605832778,-500.0,0.00024657,2]
[316739189,1709605832787,-500.0,0.00024657,2]
[316739191,1709605832797,-500.0,0.00024657,2]
[316739193,1709605832810,-500.0,0.00024657,2]
[316739195,1709605832819,-500.0,0.00024657,2]
[316739197,1709605832828,-500.0,0.00024657,2]
[316739199,1709605832837,-500.0,0.00024657,2]
[316739201,1709605832847,-500.0,0.00024657,2]
[316739203,1709605832857,-500.0,0.00024657,2]
[316739205,1709605832867,-500.0,0.00024657,2]
[316739207,1709605832877,-500.0,0.00024657,2]
[316739208,1709605832887,-500.0,0.00024657,2]
[316739210,1709605832899,-500.0,0.00024657,2]
[316739212,1709605832909,-613.36783666,0.00024657,2]
[316739214,1709605832919,-500.0,0.00024657,2]
[316739216,1709605832928,-613.75163876,0.00024657,2]
[316739219,1709605832939,-500.0,0.00024657,2]
[316739220,1709605832948,-500.0,0.00024657,2]
[316739222,1709605832957,-553.84847257,0.00024657,2]
[316739224,1709605832967,-526.35087247,0.00024657,2]
[316739226,1709605832977,-500.0,0.00024657,2]
[316739228,1709605832987,-500.0,0.00024657,2]
[316739230,1709605832996,-500.0,0.00024657,2]
[316739232,1709605833006,-585.03189378,0.00024657,2]